[Event "Titled Tuesday Blitz May 16 Early 2023"]
[White "Omariev, Maksim"]
[Black "Altman, Joshua"]
[WhiteFideId "4193423"]
[BlackFideId "426210"]
[WhiteElo "2417"]
[BlackElo "2028"]
[Result "1-0"]
[Round "09"]
[TimeControl "180+2"]
[Date "2023.05.16"]
[WhiteClock "0:00:15"]
[BlackClock "0:00:13"]

1. e4 {[%clk 0:02:42]}  e6 {[%clk 0:03:00]} 2. d4 {[%clk 0:02:42]}  d5 {[%clk 0:03:00]} 3. Nc3 {[%clk 0:02:42]}  dxe4 {[%clk 0:02:57]} 4. Nxe4 {[%clk 0:02:43]}  Nd7 {[%clk 0:02:58]} 5. Nf3 {[%clk 0:02:42]}  Ngf6 {[%clk 0:02:58]} 6. Bd3 {[%clk 0:02:42]}  Nxe4 {[%clk 0:02:57]} 7. Bxe4 {[%clk 0:02:43]}  Nf6 {[%clk 0:02:57]} 8. Bd3 {[%clk 0:02:44]}  c5 {[%clk 0:02:58]} 9. c3 {[%clk 0:02:44]}  Be7 {[%clk 0:02:53]} 10. Qe2 {[%clk 0:02:42]}  O-O {[%clk 0:02:52]} 11. Bg5 {[%clk 0:02:40]}  h6 {[%clk 0:02:51]} 12. Bh4 {[%clk 0:02:40]}  cxd4 {[%clk 0:02:44]} 13. Nxd4 {[%clk 0:02:37]}  Nd5 {[%clk 0:02:41]} 14. Bg3 {[%clk 0:02:29]}  Bd7 {[%clk 0:02:33]} 15. O-O-O {[%clk 0:02:26]}  Qa5 {[%clk 0:02:28]} 16. Kb1 {[%clk 0:02:24]}  Rfc8 {[%clk 0:02:14]} 17. Ka1 {[%clk 0:02:14]}  b5 {[%clk 0:01:56]} 18. Bxb5 {[%clk 0:01:49]}  Be8 {[%clk 0:00:46]} 19. Bxe8 {[%clk 0:01:44]}  Rxe8 {[%clk 0:00:47]} 20. Nc6 {[%clk 0:01:41]}  Qb6 {[%clk 0:00:46]} 21. Nxe7+ {[%clk 0:01:40]}  Nxe7 {[%clk 0:00:46]} 22. Rd6 {[%clk 0:01:35]}  Qc5 {[%clk 0:00:44]} 23. Qe5 {[%clk 0:01:18]}  Nd5 {[%clk 0:00:36]} 24. Rd1 {[%clk 0:01:09]}  Rac8 {[%clk 0:00:22]} 25. Rd7 {[%clk 0:01:04]}  a5 {[%clk 0:00:10]} 26. Qd4 {[%clk 0:00:56]}  Qc6 {[%clk 0:00:10]} 27. Ra7 {[%clk 0:00:56]}  Ra8 {[%clk 0:00:08]} 28. Rxa8 {[%clk 0:00:54]}  Rxa8 {[%clk 0:00:09]} 29. a3 {[%clk 0:00:35]}  a4 {[%clk 0:00:09]} 30. c4 {[%clk 0:00:35]}  Nf6 {[%clk 0:00:08]} 31. Be5 {[%clk 0:00:34]}  Ne8 {[%clk 0:00:03]} 32. c5 {[%clk 0:00:34]}  f6 {[%clk 0:00:03]} 33. Bg3 {[%clk 0:00:21]}  Rc8 {[%clk 0:00:04]} 34. Rc1 {[%clk 0:00:17]}  Nc7 {[%clk 0:00:04]} 35. Bxc7 {[%clk 0:00:10]}  Rxc7 {[%clk 0:00:05]} 36. g3 {[%clk 0:00:07]}  Rd7 {[%clk 0:00:05]} 37. Qc4 {[%clk 0:00:07]}  Rd5 {[%clk 0:00:05]} 38. f4 {[%clk 0:00:06]}  f5 {[%clk 0:00:03]} 39. Rc3 {[%clk 0:00:05]}  Kh7 {[%clk 0:00:04]} 40. h3 {[%clk 0:00:05]}  Rd1+ {[%clk 0:00:04]} 41. Ka2 {[%clk 0:00:05]}  Qh1 {[%clk 0:00:03]} 42. Qxa4 {[%clk 0:00:05]}  Ra1+ {[%clk 0:00:04]} 43. Kb3 {[%clk 0:00:05]}  Qd1+ {[%clk 0:00:04]} 44. Kb4 {[%clk 0:00:05]}  Qd4+ {[%clk 0:00:03]} 45. Kb5 {[%clk 0:00:05]}  Qd5 {[%clk 0:00:02]} 46. Kb6 {[%clk 0:00:05]}  Rb1 {[%clk 0:00:02]} 47. b4 {[%clk 0:00:05]}  Rb2 {[%clk 0:00:02]} 48. Qb5 {[%clk 0:00:05]}  Rd2 {[%clk 0:00:03]} 49. Qc4 {[%clk 0:00:05]}  Qd8+ {[%clk 0:00:03]} 50. Kb5 {[%clk 0:00:05]}  Rd7 {[%clk 0:00:04]} 51. c6 {[%clk 0:00:05]}  Rd5+ {[%clk 0:00:04]} 52. Ka6 {[%clk 0:00:05]}  Qa8+ {[%clk 0:00:04]} 53. Kb6 {[%clk 0:00:05]}  Qb8+ {[%clk 0:00:04]} 54. Ka6 {[%clk 0:00:05]}  Qa8+ {[%clk 0:00:05]} 55. Kb6 {[%clk 0:00:05]}  Rd8 {[%clk 0:00:04]} 56. c7 {[%clk 0:00:05]}  Rd6+ {[%clk 0:00:04]} 57. Kc5 {[%clk 0:00:05]}  Rc6+ {[%clk 0:00:05]} 58. Kd4 {[%clk 0:00:05]}  Rxc4+ {[%clk 0:00:05]} 59. Rxc4 {[%clk 0:00:06]}  Qc8 {[%clk 0:00:05]} 60. b5 {[%clk 0:00:07]}  Kg6 {[%clk 0:00:06]} 61. b6 {[%clk 0:00:07]}  Qd7+ {[%clk 0:00:06]} 62. Kc3 {[%clk 0:00:07]}  Qc8 {[%clk 0:00:06]} 63. b7 {[%clk 0:00:08]}  Qxb7 {[%clk 0:00:06]} 64. c8=Q {[%clk 0:00:08]}  Qf3+ {[%clk 0:00:06]} 65. Kb4 {[%clk 0:00:09]}  Qd1 {[%clk 0:00:05]} 66. Qe8+ {[%clk 0:00:08]}  Kf6 {[%clk 0:00:05]} 67. Qf8+ {[%clk 0:00:09]}  Kg6 {[%clk 0:00:05]} 68. Qc5 {[%clk 0:00:09]}  Qb1+ {[%clk 0:00:05]} 69. Ka5 {[%clk 0:00:09]}  Qd3 {[%clk 0:00:06]} 70. Rc3 {[%clk 0:00:09]}  Qd7 {[%clk 0:00:06]} 71. Qe5 {[%clk 0:00:09]}  Qd8+ {[%clk 0:00:05]} 72. Kb5 {[%clk 0:00:10]}  Qd7+ {[%clk 0:00:05]} 73. Kc5 {[%clk 0:00:10]}  Qc8+ {[%clk 0:00:05]} 74. Kd6 {[%clk 0:00:10]}  Qd8+ {[%clk 0:00:05]} 75. Kxe6 {[%clk 0:00:11]}  Qe8+ {[%clk 0:00:05]} 76. Kd5 {[%clk 0:00:11]}  Qd7+ {[%clk 0:00:06]} 77. Qd6+ {[%clk 0:00:12]}  Qxd6+ {[%clk 0:00:07]} 78. Kxd6 {[%clk 0:00:13]}  Kh5 {[%clk 0:00:08]} 79. a4 {[%clk 0:00:13]}  g5 {[%clk 0:00:09]} 80. a5 {[%clk 0:00:13]}  g4 {[%clk 0:00:09]} 81. hxg4+ {[%clk 0:00:14]}  Kxg4 {[%clk 0:00:10]} 82. a6 {[%clk 0:00:14]}  h5 {[%clk 0:00:10]} 83. a7 {[%clk 0:00:14]}  h4 {[%clk 0:00:11]} 84. gxh4 {[%clk 0:00:15]}  Kxh4 {[%clk 0:00:12]} 85. a8=Q {[%clk 0:00:15]}  Kg4 {[%clk 0:00:13]} 86. Qg8+ {[%clk 0:00:15]}  Kxf4 {[%clk 0:00:14]} 87. Qc4+ {[%clk 0:00:15]}  Kg5 {[%clk 0:00:13]} 88. Rg3+ {[%clk 0:00:15]}  Kf6 {[%clk 0:00:13]} 89. Qe6# {[%clk 0:00:15]} 1-0


[Site "https://www.chess.com"]

[Event "Titled Tuesday Blitz May 16 Early 2023"]
[White "Baghdasaryan, Vahe"]
[Black "Yosha_Iglesias"]
[WhiteFideId "13303139"]
[WhiteElo "2216"]
[BlackElo "2415"]
[Result "1-0"]
[Round "09"]
[TimeControl "180+2"]
[Date "2023.05.16"]
[WhiteClock "0:00:35"]
[BlackClock "0:00:00"]

1. e4 {[%clk 0:03:00]}  c5 {[%clk 0:02:59]} 2. g3 {[%clk 0:02:59]}  d5 {[%clk 0:02:58]} 3. exd5 {[%clk 0:02:59]}  Qxd5 {[%clk 0:02:58]} 4. Nf3 {[%clk 0:02:59]}  Bg4 {[%clk 0:02:55]} 5. Bg2 {[%clk 0:02:57]}  Qe6+ {[%clk 0:02:55]} 6. Kf1 {[%clk 0:02:57]}  Bh3 {[%clk 0:02:51]} 7. d3 {[%clk 0:02:56]}  Nc6 {[%clk 0:02:42]} 8. Nbd2 {[%clk 0:02:54]}  h5 {[%clk 0:02:24]} 9. Ne4 {[%clk 0:02:43]}  h4 {[%clk 0:02:08]} 10. Nxh4 {[%clk 0:02:17]}  O-O-O {[%clk 0:01:30]} 11. Be3 {[%clk 0:01:58]}  Nf6 {[%clk 0:01:13]} 12. Ng5 {[%clk 0:01:16]}  Bxg2+ {[%clk 0:01:13]} 13. Nxg2 {[%clk 0:01:16]}  Qd5 {[%clk 0:01:09]} 14. c4 {[%clk 0:01:14]}  Qxd3+ {[%clk 0:00:33]} 15. Qxd3 {[%clk 0:01:11]}  Rxd3 {[%clk 0:00:34]} 16. Ke2 {[%clk 0:01:04]}  Rd7 {[%clk 0:00:27]} 17. Nxf7 {[%clk 0:00:59]}  Rh5 {[%clk 0:00:26]} 18. Nf4 {[%clk 0:00:50]}  Rf5 {[%clk 0:00:23]} 19. Ng6 {[%clk 0:00:49]}  Ng4 {[%clk 0:00:20]} 20. Nxf8 {[%clk 0:00:48]}  Rd4 {[%clk 0:00:10]} 21. Ne6 {[%clk 0:00:45]}  Re4 {[%clk 0:00:05]} 22. Nfg5 {[%clk 0:00:43]}  Ree5 {[%clk 0:00:00]} 23. Rhf1 {[%clk 0:00:35]} 1-0


[Site "https://www.chess.com"]

[Event "Titled Tuesday Blitz May 16 Early 2023"]
[White "Tokman, Ariel"]
[Black "Sargissyan, Sargis"]
[WhiteFideId "117420"]
[BlackFideId "13303210"]
[WhiteElo "2263"]
[BlackElo "2109"]
[Result "0-1"]
[Round "09"]
[TimeControl "180+2"]
[Date "2023.05.16"]
[WhiteClock "0:00:22"]
[BlackClock "0:00:54"]

1. e4 {[%clk 0:02:59]}  c5 {[%clk 0:02:15]} 2. Nf3 {[%clk 0:02:58]}  d6 {[%clk 0:02:12]} 3. b3 {[%clk 0:02:54]}  e5 {[%clk 0:02:09]} 4. a4 {[%clk 0:02:52]}  Nf6 {[%clk 0:02:07]} 5. d3 {[%clk 0:02:49]}  g6 {[%clk 0:02:08]} 6. g3 {[%clk 0:02:49]}  Bg7 {[%clk 0:02:08]} 7. Bg2 {[%clk 0:02:49]}  O-O {[%clk 0:02:09]} 8. O-O {[%clk 0:02:50]}  Nc6 {[%clk 0:02:10]} 9. Na3 {[%clk 0:02:49]}  h6 {[%clk 0:02:05]} 10. Nc4 {[%clk 0:02:48]}  Bg4 {[%clk 0:02:05]} 11. h3 {[%clk 0:02:47]}  Be6 {[%clk 0:02:05]} 12. Kh2 {[%clk 0:02:46]}  Nh7 {[%clk 0:02:01]} 13. Bb2 {[%clk 0:02:41]}  f5 {[%clk 0:02:01]} 14. Ne3 {[%clk 0:02:32]}  f4 {[%clk 0:01:58]} 15. Nd5 {[%clk 0:02:31]}  g5 {[%clk 0:01:57]} 16. g4 {[%clk 0:02:20]}  h5 {[%clk 0:01:51]} 17. Nd2 {[%clk 0:02:16]}  hxg4 {[%clk 0:01:40]} 18. hxg4 {[%clk 0:02:17]}  Nf6 {[%clk 0:01:40]} 19. Bf3 {[%clk 0:02:15]}  Qd7 {[%clk 0:01:26]} 20. Nxf6+ {[%clk 0:02:08]}  Bxf6 {[%clk 0:01:26]} 21. Kg2 {[%clk 0:02:02]}  Kg7 {[%clk 0:01:25]} 22. Rh1 {[%clk 0:01:56]}  Rh8 {[%clk 0:01:25]} 23. Qe2 {[%clk 0:01:54]}  Ne7 {[%clk 0:01:19]} 24. Rxh8 {[%clk 0:01:47]}  Rxh8 {[%clk 0:01:20]} 25. Rh1 {[%clk 0:01:47]}  Rf8 {[%clk 0:01:12]} 26. Nc4 {[%clk 0:01:43]}  Ng6 {[%clk 0:01:11]} 27. Kg1 {[%clk 0:01:37]}  Nh4 {[%clk 0:01:11]} 28. c3 {[%clk 0:00:53]}  Rh8 {[%clk 0:00:55]} 29. d4 {[%clk 0:00:40]}  Nxf3+ {[%clk 0:00:54]} 30. Qxf3 {[%clk 0:00:40]}  Rxh1+ {[%clk 0:00:55]} 31. Qxh1 {[%clk 0:00:35]}  Bxc4 {[%clk 0:00:54]} 32. bxc4 {[%clk 0:00:22]}  Qxg4+ {[%clk 0:00:54]} 0-1


[Site "https://www.chess.com"]

[Event "Titled Tuesday Blitz May 16 Early 2023"]
[White "Estrada Nieto, Julian"]
[Black "Petrova, Irina"]
[WhiteFideId "5101018"]
[BlackFideId "14124122"]
[WhiteElo "2161"]
[BlackElo "2084"]
[Result "1-0"]
[Round "09"]
[TimeControl "180+2"]
[Date "2023.05.16"]
[WhiteClock "0:00:31"]
[BlackClock "0:00:28"]

1. e4 {[%clk 0:03:00]}  e5 {[%clk 0:02:59]} 2. Nf3 {[%clk 0:02:59]}  Nc6 {[%clk 0:02:59]} 3. Bb5 {[%clk 0:02:59]}  a6 {[%clk 0:02:59]} 4. Ba4 {[%clk 0:02:57]}  Nf6 {[%clk 0:02:59]} 5. O-O {[%clk 0:02:56]}  b5 {[%clk 0:02:59]} 6. Bb3 {[%clk 0:02:56]}  Be7 {[%clk 0:02:59]} 7. Re1 {[%clk 0:02:51]}  O-O {[%clk 0:02:58]} 8. a4 {[%clk 0:02:51]}  Bb7 {[%clk 0:02:48]} 9. d3 {[%clk 0:02:43]}  d5 {[%clk 0:02:33]} 10. axb5 {[%clk 0:02:29]}  axb5 {[%clk 0:02:32]} 11. Rxa8 {[%clk 0:02:29]}  Bxa8 {[%clk 0:02:33]} 12. exd5 {[%clk 0:02:27]}  Nxd5 {[%clk 0:02:34]} 13. Nxe5 {[%clk 0:02:25]}  Nxe5 {[%clk 0:02:31]} 14. Rxe5 {[%clk 0:02:26]}  Bd6 {[%clk 0:02:20]} 15. Rxd5 {[%clk 0:02:14]}  Bxd5 {[%clk 0:02:19]} 16. Bxd5 {[%clk 0:02:14]}  Bxh2+ {[%clk 0:02:18]} 17. Kxh2 {[%clk 0:02:15]}  Qxd5 {[%clk 0:02:19]} 18. Nc3 {[%clk 0:02:06]}  Qd6+ {[%clk 0:02:11]} 19. Kg1 {[%clk 0:02:03]}  b4 {[%clk 0:02:11]} 20. Ne4 {[%clk 0:02:03]}  Qe7 {[%clk 0:02:07]} 21. Be3 {[%clk 0:02:02]}  Ra8 {[%clk 0:02:01]} 22. Qg4 {[%clk 0:01:54]}  Qe5 {[%clk 0:01:53]} 23. g3 {[%clk 0:01:40]}  Qxb2 {[%clk 0:01:50]} 24. c3 {[%clk 0:01:11]}  h5 {[%clk 0:01:13]} 25. Qg5 {[%clk 0:00:54]}  Qb1+ {[%clk 0:01:05]} 26. Kg2 {[%clk 0:00:53]}  Qxd3 {[%clk 0:01:02]} 27. Nf6+ {[%clk 0:00:49]}  Kf8 {[%clk 0:00:58]} 28. Bc5+ {[%clk 0:00:49]}  Qd6 {[%clk 0:00:51]} 29. Bxd6+ {[%clk 0:00:48]}  cxd6 {[%clk 0:00:52]} 30. Nxh5 {[%clk 0:00:45]}  g6 {[%clk 0:00:50]} 31. Qf6 {[%clk 0:00:38]}  Re8 {[%clk 0:00:41]} 32. Nf4 {[%clk 0:00:31]}  Kg8 {[%clk 0:00:28]} 33. cxb4 {[%clk 0:00:31]} 1-0


[Site "https://www.chess.com"]

[Event "Titled Tuesday Blitz May 16 Early 2023"]
[White "Krsnik Cohar, Ivan Vihor"]
[Black "Ansh M Shah"]
[WhiteFideId "14520044"]
[BlackFideId "25033379"]
[WhiteElo "2414"]
[BlackElo "2084"]
[Result "1-0"]
[Round "09"]
[TimeControl "180+2"]
[Date "2023.05.16"]
[WhiteClock "0:00:04"]
[BlackClock "0:00:03"]

1. e4 {[%clk 0:03:00]}  c6 {[%clk 0:02:59]} 2. Nf3 {[%clk 0:03:00]}  d5 {[%clk 0:03:00]} 3. exd5 {[%clk 0:03:01]}  cxd5 {[%clk 0:03:00]} 4. d4 {[%clk 0:03:02]}  Nc6 {[%clk 0:02:59]} 5. c4 {[%clk 0:03:03]}  Nf6 {[%clk 0:02:59]} 6. Nc3 {[%clk 0:03:03]}  Bg4 {[%clk 0:02:59]} 7. cxd5 {[%clk 0:03:02]}  Nxd5 {[%clk 0:02:58]} 8. Bb5 {[%clk 0:03:02]}  Rc8 {[%clk 0:02:57]} 9. O-O {[%clk 0:03:02]}  e6 {[%clk 0:02:57]} 10. h3 {[%clk 0:03:02]}  Bh5 {[%clk 0:02:57]} 11. g4 {[%clk 0:03:03]}  Bg6 {[%clk 0:02:57]} 12. Ne5 {[%clk 0:03:03]}  Be7 {[%clk 0:02:57]} 13. f4 {[%clk 0:02:48]}  O-O {[%clk 0:01:55]} 14. Bxc6 {[%clk 0:02:42]}  bxc6 {[%clk 0:01:50]} 15. f5 {[%clk 0:02:42]}  f6 {[%clk 0:01:46]} 16. fxg6 {[%clk 0:01:53]}  fxe5 {[%clk 0:01:45]} 17. gxh7+ {[%clk 0:01:48]}  Kh8 {[%clk 0:01:44]} 18. Rxf8+ {[%clk 0:01:38]}  Qxf8 {[%clk 0:01:45]} 19. dxe5 {[%clk 0:01:14]}  Bc5+ {[%clk 0:01:38]} 20. Kh1 {[%clk 0:01:14]}  Qf2 {[%clk 0:01:16]} 21. Ne4 {[%clk 0:01:12]}  Qh4 {[%clk 0:00:55]} 22. Kg2 {[%clk 0:01:12]}  Rf8 {[%clk 0:00:50]} 23. Qe2 {[%clk 0:00:37]}  Bb6 {[%clk 0:00:31]} 24. Bg5 {[%clk 0:00:31]}  Qxh7 {[%clk 0:00:19]} 25. Rf1 {[%clk 0:00:22]}  Rxf1 {[%clk 0:00:18]} 26. Kxf1 {[%clk 0:00:22]}  Qg6 {[%clk 0:00:18]} 27. h4 {[%clk 0:00:16]}  Qf7+ {[%clk 0:00:15]} 28. Kg2 {[%clk 0:00:11]}  Qg6 {[%clk 0:00:14]} 29. Qf3 {[%clk 0:00:12]}  Kh7 {[%clk 0:00:12]} 30. Bd2 {[%clk 0:00:11]}  Kg8 {[%clk 0:00:11]} 31. h5 {[%clk 0:00:10]}  Qe8 {[%clk 0:00:11]} 32. Ng5 {[%clk 0:00:07]}  Qf8 {[%clk 0:00:08]} 33. Qxf8+ {[%clk 0:00:05]}  Kxf8 {[%clk 0:00:09]} 34. Nxe6+ {[%clk 0:00:06]}  Kf7 {[%clk 0:00:09]} 35. Ng5+ {[%clk 0:00:06]}  Ke7 {[%clk 0:00:09]} 36. Kf3 {[%clk 0:00:07]}  Bd4 {[%clk 0:00:10]} 37. Ke4 {[%clk 0:00:06]}  Bxb2 {[%clk 0:00:10]} 38. Nf3 {[%clk 0:00:06]}  Ba3 {[%clk 0:00:09]} 39. Nd4 {[%clk 0:00:05]}  Kd7 {[%clk 0:00:08]} 40. Nf5 {[%clk 0:00:03]}  Bf8 {[%clk 0:00:06]} 41. g5 {[%clk 0:00:04]}  Ke6 {[%clk 0:00:03]} 42. Nd4+ {[%clk 0:00:03]}  Kd7 {[%clk 0:00:03]} 43. Kf5 {[%clk 0:00:04]}  Ne7+ {[%clk 0:00:03]} 44. Ke4 {[%clk 0:00:03]}  c5 {[%clk 0:00:03]} 45. e6+ {[%clk 0:00:03]}  Kd6 {[%clk 0:00:03]} 46. Bf4# {[%clk 0:00:04]} 1-0


[Site "https://www.chess.com"]

[Event "Titled Tuesday Blitz May 16 Early 2023"]
[White "surrenderPLS"]
[Black "Buscar, Michael"]
[BlackFideId "2603616"]
[WhiteElo "2515"]
[BlackElo "2010"]
[Result "1-0"]
[Round "09"]
[TimeControl "180+2"]
[Date "2023.05.16"]
[WhiteClock "0:00:25"]
[BlackClock "0:00:00"]

1. e4 {[%clk 0:03:00]}  c5 {[%clk 0:02:58]} 2. Nf3 {[%clk 0:02:59]}  Nc6 {[%clk 0:02:59]} 3. d4 {[%clk 0:02:59]}  cxd4 {[%clk 0:03:00]} 4. Nxd4 {[%clk 0:03:00]}  Nf6 {[%clk 0:03:00]} 5. Nc3 {[%clk 0:03:00]}  e5 {[%clk 0:03:00]} 6. Ndb5 {[%clk 0:03:00]}  h6 {[%clk 0:03:00]} 7. Nd5 {[%clk 0:02:58]}  Nxd5 {[%clk 0:03:00]} 8. exd5 {[%clk 0:02:59]}  a6 {[%clk 0:03:01]} 9. dxc6 {[%clk 0:02:51]}  axb5 {[%clk 0:03:02]} 10. cxd7+ {[%clk 0:02:51]}  Bxd7 {[%clk 0:03:01]} 11. Qd5 {[%clk 0:02:40]}  Qc7 {[%clk 0:03:00]} 12. Bd2 {[%clk 0:02:34]}  b4 {[%clk 0:02:48]} 13. Bb5 {[%clk 0:02:23]}  O-O-O {[%clk 0:02:27]} 14. Bxd7+ {[%clk 0:01:30]}  Rxd7 {[%clk 0:02:17]} 15. Qe4 {[%clk 0:01:26]}  Bc5 {[%clk 0:02:15]} 16. O-O-O {[%clk 0:01:23]}  Bxf2 {[%clk 0:01:37]} 17. Bxb4 {[%clk 0:01:03]}  Rhd8 {[%clk 0:01:22]} 18. Rxd7 {[%clk 0:01:02]}  Rxd7 {[%clk 0:01:11]} 19. Rd1 {[%clk 0:01:01]}  Rxd1+ {[%clk 0:00:51]} 20. Kxd1 {[%clk 0:01:02]}  Qd7+ {[%clk 0:00:49]} 21. Ke2 {[%clk 0:01:00]}  Bd4 {[%clk 0:00:39]} 22. c3 {[%clk 0:00:56]}  Qb5+ {[%clk 0:00:33]} 23. Qd3 {[%clk 0:00:51]}  Qxd3+ {[%clk 0:00:32]} 24. Kxd3 {[%clk 0:00:52]}  Bb6 {[%clk 0:00:31]} 25. Bf8 {[%clk 0:00:51]}  g6 {[%clk 0:00:25]} 26. Bxh6 {[%clk 0:00:51]}  Kd7 {[%clk 0:00:26]} 27. Be3 {[%clk 0:00:48]}  Bc7 {[%clk 0:00:26]} 28. g4 {[%clk 0:00:49]}  f5 {[%clk 0:00:23]} 29. gxf5 {[%clk 0:00:34]}  gxf5 {[%clk 0:00:23]} 30. b4 {[%clk 0:00:29]}  e4+ {[%clk 0:00:22]} 31. Ke2 {[%clk 0:00:29]}  Bxh2 {[%clk 0:00:22]} 32. a4 {[%clk 0:00:29]}  f4 {[%clk 0:00:21]} 33. Bd4 {[%clk 0:00:29]}  Ke6 {[%clk 0:00:19]} 34. c4 {[%clk 0:00:27]}  f3+ {[%clk 0:00:17]} 35. Kf2 {[%clk 0:00:27]}  Kf5 {[%clk 0:00:15]} 36. a5 {[%clk 0:00:27]}  Kf4 {[%clk 0:00:11]} 37. Be3+ {[%clk 0:00:25]}  Ke5 {[%clk 0:00:10]} 38. b5 {[%clk 0:00:25]}  Bf4 {[%clk 0:00:08]} 39. a6 {[%clk 0:00:23]}  bxa6 {[%clk 0:00:03]} 40. bxa6 {[%clk 0:00:24]}  Bxe3+ {[%clk 0:00:02]} 41. Kxe3 {[%clk 0:00:25]}  Kd6 {[%clk 0:00:00]} 42. a7 {[%clk 0:00:25]} 1-0


[Site "https://www.chess.com"]

[Event "Titled Tuesday Blitz May 16 Early 2023"]
[White "Hua, Lefong"]
[Black "Jiganchine, Roman"]
[WhiteFideId "2602253"]
[BlackFideId "2603667"]
[WhiteElo "2645"]
[BlackElo "2274"]
[Result "1-0"]
[Round "09"]
[TimeControl "180+2"]
[Date "2023.05.16"]
[WhiteClock "0:00:26"]
[BlackClock "0:00:00"]

1. d4 {[%clk 0:03:00]}  d5 {[%clk 0:02:59]} 2. c4 {[%clk 0:03:01]}  e6 {[%clk 0:02:59]} 3. Nc3 {[%clk 0:03:01]}  Nf6 {[%clk 0:02:59]} 4. cxd5 {[%clk 0:03:01]}  exd5 {[%clk 0:02:59]} 5. Bg5 {[%clk 0:03:02]}  c6 {[%clk 0:02:59]} 6. e3 {[%clk 0:03:02]}  Bf5 {[%clk 0:02:59]} 7. Qf3 {[%clk 0:03:02]}  Be6 {[%clk 0:02:56]} 8. Bxf6 {[%clk 0:03:00]}  Qxf6 {[%clk 0:02:56]} 9. Qxf6 {[%clk 0:02:59]}  gxf6 {[%clk 0:02:56]} 10. Bd3 {[%clk 0:02:57]}  a5 {[%clk 0:02:56]} 11. Nge2 {[%clk 0:02:54]}  a4 {[%clk 0:02:56]} 12. a3 {[%clk 0:02:54]}  Nd7 {[%clk 0:02:55]} 13. Nf4 {[%clk 0:02:52]}  b5 {[%clk 0:02:51]} 14. Kd2 {[%clk 0:02:50]}  Nb6 {[%clk 0:02:50]} 15. Nce2 {[%clk 0:02:35]}  Bd6 {[%clk 0:02:48]} 16. Nh5 {[%clk 0:02:23]}  Ke7 {[%clk 0:02:41]} 17. Neg3 {[%clk 0:02:24]}  Nc4+ {[%clk 0:02:36]} 18. Kc2 {[%clk 0:02:23]}  b4 {[%clk 0:02:16]} 19. axb4 {[%clk 0:02:19]}  Rhb8 {[%clk 0:02:09]} 20. Bxc4 {[%clk 0:02:08]}  dxc4 {[%clk 0:02:07]} 21. Ng7 {[%clk 0:01:47]}  Bxg3 {[%clk 0:01:16]} 22. hxg3 {[%clk 0:01:48]}  Rxb4 {[%clk 0:01:16]} 23. Nxe6 {[%clk 0:01:40]}  Kxe6 {[%clk 0:01:09]} 24. Rxh7 {[%clk 0:01:39]}  Rab8 {[%clk 0:01:09]} 25. Ra2 {[%clk 0:01:40]}  Rb3 {[%clk 0:00:53]} 26. Rh5 {[%clk 0:01:33]}  f5 {[%clk 0:00:51]} 27. Rh6+ {[%clk 0:01:33]}  f6 {[%clk 0:00:51]} 28. Rh7 {[%clk 0:01:33]}  a3 {[%clk 0:00:36]} 29. bxa3 {[%clk 0:01:32]}  Rb1 {[%clk 0:00:35]} 30. Kc3 {[%clk 0:01:03]}  Kd5 {[%clk 0:00:22]} 31. Rd7+ {[%clk 0:00:55]}  Ke6 {[%clk 0:00:22]} 32. Rc7 {[%clk 0:00:52]}  Kd6 {[%clk 0:00:22]} 33. Rf7 {[%clk 0:00:45]}  Ke6 {[%clk 0:00:22]} 34. Ra7 {[%clk 0:00:45]}  Rc1+ {[%clk 0:00:16]} 35. Kd2 {[%clk 0:00:42]}  Rf1 {[%clk 0:00:15]} 36. Ke2 {[%clk 0:00:41]}  Rbb1 {[%clk 0:00:15]} 37. Rc2 {[%clk 0:00:37]}  Rbe1+ {[%clk 0:00:11]} 38. Kf3 {[%clk 0:00:38]}  Rc1 {[%clk 0:00:08]} 39. Rxc1 {[%clk 0:00:38]}  Rxc1 {[%clk 0:00:08]} 40. Ra5 {[%clk 0:00:38]}  c3 {[%clk 0:00:05]} 41. Rc5 {[%clk 0:00:39]}  Kd6 {[%clk 0:00:05]} 42. a4 {[%clk 0:00:36]}  c2 {[%clk 0:00:03]} 43. a5 {[%clk 0:00:34]}  Kc7 {[%clk 0:00:02]} 44. Kf4 {[%clk 0:00:30]}  Kb7 {[%clk 0:00:03]} 45. Kxf5 {[%clk 0:00:30]}  Ka7 {[%clk 0:00:02]} 46. Kxf6 {[%clk 0:00:29]}  Ra1 {[%clk 0:00:01]} 47. Rxc2 {[%clk 0:00:28]}  Rxa5 {[%clk 0:00:00]} 48. g4 {[%clk 0:00:26]} 1-0


[Site "https://www.chess.com"]

[Event "Titled Tuesday Blitz May 16 Early 2023"]
[White "Filgueira, Hernan"]
[Black "Fernandez Siles, Luis"]
[WhiteFideId "101770"]
[BlackFideId "2209420"]
[WhiteElo "2363"]
[BlackElo "2195"]
[Result "1-0"]
[Round "09"]
[TimeControl "180+2"]
[Date "2023.05.16"]
[WhiteClock "0:01:07"]
[BlackClock "0:00:12"]

1. c4 {[%clk 0:02:55]}  Nf6 {[%clk 0:02:59]} 2. Nc3 {[%clk 0:02:54]}  g6 {[%clk 0:02:59]} 3. g3 {[%clk 0:02:54]}  Bg7 {[%clk 0:02:59]} 4. Bg2 {[%clk 0:02:54]}  O-O {[%clk 0:03:00]} 5. d3 {[%clk 0:02:55]}  d6 {[%clk 0:02:59]} 6. e4 {[%clk 0:02:54]}  c5 {[%clk 0:02:58]} 7. Nge2 {[%clk 0:02:53]}  Nc6 {[%clk 0:02:59]} 8. O-O {[%clk 0:02:54]}  Bg4 {[%clk 0:02:59]} 9. f3 {[%clk 0:02:52]}  Bd7 {[%clk 0:02:58]} 10. Be3 {[%clk 0:02:52]}  Ne8 {[%clk 0:02:57]} 11. d4 {[%clk 0:02:52]}  cxd4 {[%clk 0:02:56]} 12. Nxd4 {[%clk 0:02:51]}  Nxd4 {[%clk 0:02:55]} 13. Bxd4 {[%clk 0:02:51]}  Bxd4+ {[%clk 0:02:55]} 14. Qxd4 {[%clk 0:02:51]}  Nc7 {[%clk 0:02:56]} 15. Qd2 {[%clk 0:02:44]}  Ne6 {[%clk 0:02:54]} 16. Nd5 {[%clk 0:02:42]}  Bc6 {[%clk 0:02:49]} 17. Rae1 {[%clk 0:02:37]}  b5 {[%clk 0:02:36]} 18. cxb5 {[%clk 0:02:33]}  Bxb5 {[%clk 0:02:35]} 19. Rf2 {[%clk 0:02:33]}  Nc7 {[%clk 0:02:25]} 20. Nc3 {[%clk 0:02:31]}  Bc4 {[%clk 0:02:13]} 21. b3 {[%clk 0:02:27]}  Be6 {[%clk 0:02:13]} 22. f4 {[%clk 0:02:27]}  Rc8 {[%clk 0:02:06]} 23. f5 {[%clk 0:02:26]}  Bd7 {[%clk 0:02:03]} 24. h4 {[%clk 0:02:16]}  Nb5 {[%clk 0:02:01]} 25. Nd5 {[%clk 0:02:15]}  Bc6 {[%clk 0:01:28]} 26. fxg6 {[%clk 0:01:50]}  hxg6 {[%clk 0:01:24]} 27. h5 {[%clk 0:01:47]}  Bxd5 {[%clk 0:01:24]} 28. Qxd5 {[%clk 0:01:43]}  Rc5 {[%clk 0:01:23]} 29. Qd3 {[%clk 0:01:37]}  Rxh5 {[%clk 0:01:07]} 30. Bf3 {[%clk 0:01:32]}  Re5 {[%clk 0:01:07]} 31. Kg2 {[%clk 0:01:30]}  Qb6 {[%clk 0:01:07]} 32. Rh1 {[%clk 0:01:30]}  Qd4 {[%clk 0:01:01]} 33. Qc2 {[%clk 0:01:22]}  Kg7 {[%clk 0:00:56]} 34. Qc1 {[%clk 0:01:17]}  g5 {[%clk 0:00:50]} 35. Rh5 {[%clk 0:01:13]}  f6 {[%clk 0:00:48]} 36. Qh1 {[%clk 0:01:11]}  Kf7 {[%clk 0:00:17]} 37. Qh3 {[%clk 0:01:08]}  g4 {[%clk 0:00:15]} 38. Rh7+ {[%clk 0:01:07]}  Ke8 {[%clk 0:00:14]} 39. Qxg4 {[%clk 0:01:07]}  Rg5 {[%clk 0:00:12]} 40. Qc8# {[%clk 0:01:07]} 1-0


[Site "https://www.chess.com"]